[Event "87th Spanish Championship 2022"]
[Site "Linares"]
[Date "2022.08.13"]
[Round "3.19"]
[White "Horcajuelo Rocamora, Martin"]
[Black "Fernandez Garcia, Jose Luis"]
[Result "1/2-1/2"]
[ECO "D33"]
[WhiteElo "2107"]
[BlackElo "2362"]
[Annotator "RC"]
[PlyCount "174"]
[EventDate "2022.08.11"]
[EventType "swiss"]
[EventCountry "ESP"]
[SourceTitle "playchess.com"]
[Source "ChessBase"]
[SourceQuality "1"]
[TimeControl "5400+30"]

1. d4 d5 {[%emt 0:01:08]} 2. c4 {[%emt 0:00:11]} e6 {[%emt 0:00:05]} 3. Nf3 {[%emt 0:00:05]} c5 {[%emt 0:00:33]} 4. cxd5 {[%emt 0:00:14]} exd5 {[%emt 0:00:08]} 5. Nc3 {[%emt 0:00:09]} Nc6 {[%emt 0:00:13]} 6. g3 {[%emt 0:00:12]} Nf6 {[%emt 0:00:09]} 7. Bg2 {[%emt 0:00:09]} cxd4 {[%emt 0:00:14]} 8. Nxd4 {[%emt 0:00:06]} Bc5 {[%emt 0:00:06]} 9. Nb3 {[%emt 0:00:06]} Bb6 {[%emt 0:00:08]} 10. O-O {[%emt 0:00:06]} d4 {[%emt 0:02:29]} 11. Na4 {[%emt 0:00:09]} O-O {[%emt 0:00:07]} 12. Bg5 {[%emt 0:00:05]} Re8 {[%emt 0:01:22]} 13. Re1 {[%emt 0:00:25]} h6 {[%emt 0:01:03]} 14. Bxf6 {[%emt 0:00:06]} Qxf6 {[%emt 0:00:01]} 15. Nxb6 {[%emt 0:00:11]} axb6 {[%emt 0:00:05]} 16. Bxc6 {[%emt 0:00:06]} bxc6 {[%emt 0:00:04]} 17. Qxd4 {[%emt 0:00:09]} Qd8 {[%emt 0:00:06]} 18. Qc3 {[%emt 0:07:06]} c5 {[%emt 0:01:59]} 19. Rad1 {[%emt 0:05:34]} Qe7 {[%emt 0:04:57]} 20. a3 {[%emt 0:04:49]} Ra4 {[%emt 0:03:39]} 21. Nc1 {[%emt 0:06:22]} Re4 {[%emt 0:09:59]} 22. f3 {[%emt 0:05:10]} Re3 {[%emt 0:11:10]} 23. Rd3 {[%emt 0:03:48]} Re6 {[%emt 0:00:10]} 24. e4 {[%emt 0:02:59]} f5 {[%emt 0:07:29]} 25. Rde3 {[%emt 0:18:33]} Bb7 {[%emt 0:08:47]} 26. Nd3 {[%emt 0:08:21]} fxe4 {[%emt 0:00:40]} 27. Nf4 {[%emt 0:00:42]} Rd6 {[%emt 0:05:57]} 28. fxe4 {[%emt 0:00:39]} Qe5 {[%emt 0:07:24]} 29. Qb3+ {[%emt 0:05:28]} Kh7 {[%emt 0:03:13]} 30. Qf7 {[%emt 0:01:56]} Re7 {[%emt 0:02:09]} 31. Qf5+ {[%emt 0:00:45]} g6 {[%emt 0:00:07]} 32. Qxe5 {[%emt 0:00:39]} Rxe5 {[%emt 0:00:22]} 33. Nd3 {[%emt 0:00:41]} Rxe4 {[%emt 0:06:01]} 34. Nxc5 {[%emt 0:04:32]} Rxe3 {[%emt 0:04:15]} 35. Rxe3 {[%emt 0:00:05]} Bd5 {[%emt 0:00:09]} 36. Nd3 {[%emt 0:02:13]} Kg7 {[%emt 0:01:40]} 37. Kf2 {[%emt 0:01:41]} Kf6 {[%emt 0:07:47]} 38. Nf4 {[%emt 0:01:32]} Bf7 {[%emt 0:00:51]} 39. Rd3 {[%emt 0:01:26]} Rc6 {[%emt 0:00:35]} 40. Ke3 {[%emt 0:00:36]} g5 {[%emt 0:01:16]} 41. Nd5+ {[%emt 0:00:32]} Ke5 {[%emt 0:00:10]} 42. Nc3 {[%emt 0:00:05]} Rf6 {[%emt 0:07:57]} 43. Rd8 {[%emt 0:00:54]} Bh5 {[%emt 0:04:20]} 44. Rd5+ {[%emt 0:00:47]} Ke6 {[%emt 0:00:02]} 45. Rb5 {[%emt 0:00:15]} Kf7 {[%emt 0:01:13]} 46. Kd4 {[%emt 0:00:47]} Kg7 {[%emt 0:00:31]} 47. Ne4 {[%emt 0:01:28]} Rf1 {[%emt 0:00:26]} 48. Rxb6 {[%emt 0:00:33]} Bg6 {[%emt 0:00:20]} 49. Rb7+ {[%emt 0:00:51]} Kf8 {[%emt 0:00:04]} 50. Nc3 {[%emt 0:00:04]} Rf2 {[%emt 0:00:17]} 51. a4 {[%emt 0:00:03]} Rd2+ {[%emt 0:00:51]} 52. Kc5 {[%emt 0:00:15]} Rxh2 {[%emt 0:00:11]} 53. a5 {[%emt 0:00:04]} Bd3 {[%emt 0:00:09]} 54. b4 {[%emt 0:00:54]} Rc2 {[%emt 0:00:39]} 55. Kd4 {[%emt 0:00:31]} Bf1 {[%emt 0:00:55]} 56. Rb8+ {[%emt 0:00:25]} Kg7 {[%emt 0:00:17]} 57. Ne4 {[%emt 0:00:36]} Ra2 {[%emt 0:00:25]} 58. Ke5 {[%emt 0:00:28]} Re2 {[%emt 0:00:39]} 59. Kd4 {[%emt 0:00:59]} Ra2 {[%emt 0:00:08]} 60. Rb6 {[%emt 0:00:12]} Ra3 {[%emt 0:00:37]} 61. Nc5 {[%emt 0:00:42]} Rxg3 {[%emt 0:00:29]} 62. a6 {[%emt 0:00:05]} Ra3 {[%emt 0:00:58]} 63. b5 {[%emt 0:00:36]} g4 {[%emt 0:00:16]} 64. Ne6+ {[%emt 0:01:39]} Kh7 {[%emt 0:00:19]} 65. Nf4 {[%emt 0:01:25]} Bxb5 {[%emt 0:00:09]} 66. Rb7+ {[%emt 0:00:50]} Kg8 {[%emt 0:00:16]} 67. a7 {[%emt 0:00:11]} Bc6 {[%emt 0:00:02]} 68. Rc7 {[%emt 0:00:19]} g3 {[%emt 0:00:18]} 69. Rxc6 {[%emt 0:00:51]} Rxa7 {[%emt 0:00:05]} 70. Rxh6 {[%emt 0:00:09]} g2 {[%emt 0:00:38]} 71. Nxg2 {[%emt 0:00:09]} Kg7 {[%emt 0:00:04]} 72. Rb6 {[%emt 0:00:05]} Ra4+ {[%emt 0:00:49]} 73. Ke5 {[%emt 0:00:08]} Ra5+ {[%emt 0:00:01]} 74. Kf4 {[%emt 0:00:06]} Ra4+ {[%emt 0:00:22]} 75. Kg5 {[%emt 0:00:05]} Ra5+ {[%emt 0:00:01]} 76. Kg4 {[%emt 0:00:05]} Kf7 {[%emt 0:00:05]} 77. Ne3 {[%emt 0:00:19]} Re5 {[%emt 0:00:44]} 78. Kf4 {[%emt 0:00:08]} Re6 {[%emt 0:00:01]} 79. Rb7+ {[%emt 0:00:08]} Re7 {[%emt 0:00:11]} 80. Rb5 {[%emt 0:00:04]} Re6 {[%emt 0:00:12]} 81. Nd5 {[%emt 0:00:22]} Re1 {[%emt 0:00:29]} 82. Kf5 {[%emt 0:00:11]} Rf1+ {[%emt 0:00:38]} 83. Nf4 {[%emt 0:00:05]} Ke7 {[%emt 0:00:08]} 84. Rb6 {[%emt 0:00:04]} Kd7 {[%emt 0:00:18]} 85. Ke5 {[%emt 0:00:18]} Re1+ {[%emt 0:00:08]} 86. Kd5 {[%emt 0:00:05]} Rd1+ {[%emt 0:00:04]} 87. Ke5 {[%emt 0:00:03]} Re1+ {[%emt 0:00:03]} 1/2-1/2

[Event "87th Spanish Championship 2022"]
[Site "Linares"]
[Date "2022.08.13"]
[Round "3.20"]
[White "Ladron De Guevara Pinto, Paolo"]
[Black "Garcia Garcia, Samuel"]
[Result "1-0"]
[ECO "D37"]
[WhiteElo "2444"]
[BlackElo "2084"]
[Annotator "TA"]
[PlyCount "55"]
[EventDate "2022.08.11"]
[EventType "swiss"]
[EventCountry "ESP"]
[SourceTitle "playchess.com"]
[Source "ChessBase"]
[SourceQuality "1"]
[TimeControl "5400+30"]

{[%evp 18,55,10,10,39,10,59,6,77,75,125,125,125,127,120,133,118,118,127,131,125,126,126,126,126,126,127,127,145,137,125,132,132,125,127,128,158,150,613,587]} 1. d4 Nf6 2. c4 e6 3. Nc3 d5 4. Nf3 Be7 5. Bg5 h6 6. Bxf6 Bxf6 7. e3 O-O 8. Rc1 c6 9. Bd3 Nd7 10. O-O Nb6 {D55: Queen's Gambit Declined: 4 Bg5 Be7: Lines without ...h6 and 6...h6 7 Bxf6.} 11. b3 Re8 {[#]} (11... Nd7 $11) 12. e4 $146 (12. Ne5 $14) ({Predecessor:} 12. Qc2 Qe7 13. c5 Nd7 14. e4 b6 15. b4 Bb7 16. e5 Bh4 17. a4 a5 18. Rb1 {1-0 (52) Hansch,T-Appeldorn,D DESC email 2000}) 12... e5 (12... dxc4 $11 {remains equal.} 13. Bxc4 Nxc4 14. bxc4 Qa5) 13. dxe5 $16 Bxe5 ({Black should play} 13... dxc4 14. exf6 (14. Bxc4 Be7 $11) 14... Qxd3) 14. Nxe5 Rxe5 15. exd5 cxd5 16. c5 {[#] Hoping for f4.} Nd7 17. f4 Re8 18. Nxd5 Nf6 19. Bb5 {White is much more active.} Re4 {[#]} 20. Nxf6+ Qxf6 21. Qd6 Qd4+ 22. Qxd4 Rxd4 23. Rcd1 Rxd1 24. Rxd1 {Black must now prevent Rd8+.} Be6 25. Kf2 Rc8 26. Rc1 Bd5 27. b4 Rd8 $2 (27... Kf8 $16 28. Be2 Bc6) 28. Rd1 {White took control after the opening.  Weighted Error Value: White=0.09 (flawless) /Black=0.61} 1-0

[Event "87th Spanish Championship 2022"]
[Site "Linares"]
[Date "2022.08.13"]
[Round "3.21"]
[White "Pomes Marcet, Juan"]
[Black "Garrido Outon, Alex"]
[Result "1/2-1/2"]
[ECO "E61"]
[WhiteElo "2233"]
[BlackElo "2436"]
[Annotator "TA"]
[PlyCount "126"]
[EventDate "2022.08.11"]
[EventType "swiss"]
[EventCountry "ESP"]
[SourceTitle "playchess.com"]
[Source "ChessBase"]
[SourceQuality "1"]
[TimeControl "5400+30"]

{[%evp 18,126,-9,-6,-9,-8,-8,-22,-25,-18,-20,-21,-18,-57,-13,-31,-22,-64,-21,-61,-61,-63,-51,-58,-54,-34,-19,-49,-37,-62,-61,-60,-61,-63,-49,-63,-48,-49,-35,-76,-63,-64,-62,-66,-79,-140,-147,-150,-136,-148,-138,-139,-140,-129,-35,-19,-20,-27,-22,-20,-49,-52,-18,-22,0,0,0,0,0,0,0,0,0,0,0,-3,-3,-18,-5,-9,0,0,0,0,0,0,0,0,0,0,0,0,0,0,0,0,0,0,0,0,0,0,0,0,0,0,0,0,0,0,0]} 1. d4 {[%emt 0:00:03]} Nf6 {[%emt 0:00:07]} 2. c4 {[%emt 0:00:08]} g6 {[%emt 0:00:08]} 3. Nc3 {[%emt 0:00:07]} Bg7 {[%emt 0:00:08]} 4. Nf3 {[%emt 0:00:31]} d6 {[%emt 0:00:09]} 5. Bg5 {[%emt 0:00:17]} h6 {[%emt 0:00:17]} 6. Bh4 {[%emt 0:00:11]} g5 {[%emt 0:00:12]} 7. Bg3 {[%emt 0:00:07]} Nh5 {[%emt 0:00:09]} 8. e3 {[%emt 0:00:59]} c5 {[%emt 0:00:12]} 9. dxc5 {[%emt 0:09:51]} Nxg3 {[%emt 0:00:18]} 10. hxg3 {[%emt 0:00:09] Strongly threatening cxd6.} dxc5 {[%emt 0:00:05] E61: King's Indian: Early deviations for White, including Smyslov System.} 11. Qxd8+ {[%emt 0:02:14]} Kxd8 {[%emt 0:00:08]} 12. O-O-O+ {[%emt 0:00:24]} Bd7 {[%emt 0:00:13]} 13. Be2 {[%emt 0:04:43]} Nc6 {[%emt 0:00:24]} 14. Nd2 {[%emt 0:08:05]} (14. Kc2 {keeps more tension.} b6 15. a3 Kc7 16. Nb5+) 14... b6 {[%emt 0:08:28] [#]} 15. g4 $146 {[%emt 0:04:49]} ({Predecessor:} 15. Ndb1 Kc8 16. f4 Rb8 17. Bf3 a6 18. Rd2 g4 19. Be4 e6 20. Rhd1 Be8 21. f5 {½-½ (27) Doppelhammer,H (2288)-Hatzl,S (2355) ICCF email 2014}) 15... Kc7 {[%emt 0:06:23]} (15... Bxc3 $5 16. bxc3 Kc7 $15) 16. Nde4 {[%emt 0:02:49]} Rad8 {[%emt 0:05:20]} 17. Ng3 {[%emt 0:09:53]} Be5 {[%emt 0:13:34]} (17... Bxc3 $5 18. bxc3 Ne5 $15) 18. Rh3 {[%emt 0:10:43]} (18. Nge4 {looks sharper.} f5 19. gxf5 Bxf5 20. Rxd8 Kxd8 21. g3) 18... Bxc3 {[%emt 0:09:39]} 19. bxc3 {[%emt 0:00:07]} Be6 {[%emt 0:00:02]} 20. Rxd8 {[%emt 0:06:42]} Kxd8 {[%emt 0:00:42]} 21. Ne4 {[%emt 0:16:10]} Rg8 {[%emt 0:04:29]} (21... f6 $5 {[%cal Rc6e5]}) 22. Rxh6 {[%emt 0:06:05]} Ne5 {[%emt 0:00:20][%csl LRc4,LRg4]} 23. Nd2 {[%emt 0:03:02]} Bxg4 {[%emt 0:00:28]} 24. f3 {[%emt 0:01:08]} Be6 {[%emt 0:02:14]} 25. e4 {[%emt 0:01:31]} Kd7 {[%emt 0:04:21]} 26. g3 {[%emt 0:01:11]} f6 {[%emt 0:00:44]} 27. Rh7 {[%emt 0:01:13]} a6 {[%emt 0:03:26]} 28. f4 {[%emt 0:02:01]} gxf4 {[%emt 0:00:08]} 29. gxf4 {[%emt 0:00:05]} Rg1+ {[%emt 0:00:17]} 30. Kc2 {[%emt 0:00:18]} Ng4 {[%emt 0:00:55]} 31. Bxg4 {[%emt 0:02:42]} ({Better is} 31. Bf3) 31... Bxg4 $17 {[%emt 0:02:42][%mdl 4096] Endgame KRB-KRN} 32. f5 {[%emt 0:00:55]} Bd1+ {[%emt 0:02:09]} 33. Kb2 {[%emt 0:00:06][%cal Oe4e5]} Re1 {[%emt 0:00:17]} 34. Rh8 {[%emt 0:00:49] [#]} Ba4 $1 {[%emt 0:02:25]} 35. Ra8 {[%emt 0:04:18] [#]} Bc6 {[%emt 0:00:18]} (35... Rd1 $1 $17 {[%cal Rd1d2]} 36. Ra7+ Kd8) 36. Ra7+ {[%emt 0:00:52]} Kd8 {[%emt 0:05:35]} 37. Rxa6 {[%emt 0:01:17]} Kc7 {[%emt 0:00:41] aiming for ...Kb7.} 38. Ra7+ {[%emt 0:00:19]} Bb7 {[%emt 0:00:34]} 39. Kc2 {[%emt 0:00:19]} Re3 {[%emt 0:02:26]} (39... Kb8 $5 {[%cal Rb8a7]} 40. Ra3 Bxe4+ 41. Nxe4 Rxe4 $17) 40. Ra3 $1 {[%emt 0:02:04] The position is equal.} Bxe4+ {[%emt 0:01:31]} 41. Nxe4 {[%emt 0:00:08]} Rxe4 $11 {[%emt 0:00:02] KR-KR} 42. Ra7+ {[%emt 0:00:54]} Kd6 {[%emt 0:00:06]} 43. Kd3 {[%emt 0:00:32]} Re5 {[%emt 0:00:39]} 44. Rb7 {[%emt 0:00:10]} Rxf5 {[%emt 0:06:35]} 45. Rxb6+ {[%emt 0:00:08]} Kc7 {[%emt 0:00:11]} 46. Re6 {[%emt 0:00:53]} Kd7 {[%emt 0:00:29]} 47. Rb6 {[%emt 0:00:13]} Rf3+ {[%emt 0:03:02]} 48. Ke4 $1 {[%emt 0:00:37]} Rxc3 {[%emt 0:01:40] Hoping for ...e6.} 49. Kd5 {[%emt 0:00:06] Inhibits e6+.} Ra3 {[%emt 0:03:56]} 50. Rb7+ {[%emt 0:00:08]} Kd8 {[%emt 0:01:14]} 51. Rb2 {[%emt 0:00:48]} Rd3+ {[%emt 0:02:52]} 52. Kxc5 {[%emt 0:00:36]} Kc7 {[%emt 0:00:34]} 53. Re2 {[%emt 0:00:46]} e5 {[%emt 0:00:49]} 54. a4 {[%emt 0:00:13][%cal Ba2a4,Ba4a5,Ba5a6,Ba6a7][%mdl 32]} Rd8 {[%emt 0:02:53]} 55. a5 {[%emt 0:00:27]} Ra8 {[%emt 0:00:13]} 56. Kb5 {[%emt 0:00:26]} Re8 {[%emt 0:00:08]} 57. a6 {[%emt 0:01:28]} e4 {[%emt 0:00:07]} 58. Kc5 {[%emt 0:00:27]} f5 {[%emt 0:00:22] Threatens to win with ...f4.} 59. Kd4 {[%emt 0:00:32]} Kb6 {[%emt 0:02:20]} 60. Ke3 {[%emt 0:00:25]} Kc5 {[%emt 0:01:08]} 61. a7 {[%emt 0:00:31]} Kxc4 {[%emt 0:01:14]} 62. Ra2 {[%emt 0:00:12]} Ra8 {[%emt 0:00:18]} 63. Ra5 {[%emt 0:00:08]} Kb4 {[%emt 0:00:14] Weighted Error Value: White=0.07 (flawless) /Black=0.07 (flawless)} 1/2-1/2

[Event "87th Spanish Championship 2022"]
[Site "Linares"]
[Date "2022.08.13"]
[Round "3.22"]
[White "Saenz Narciso, Miguel Angel"]
[Black "Moreno Tejera, Emilio"]
[Result "1-0"]
[ECO "A15"]
[WhiteElo "2222"]
[BlackElo "2420"]
[Annotator "TA"]
[PlyCount "57"]
[EventDate "2022.08.11"]
[EventType "swiss"]
[EventCountry "ESP"]
[SourceTitle "playchess.com"]
[Source "ChessBase"]
[SourceQuality "1"]
[TimeControl "5400+30"]

{[%evp 17,57,0,20,0,0,-15,0,-31,-32,-27,-31,-42,-35,-53,-56,-73,-68,-85,-86,-107,-93,-79,-75,-104,-98,-101,-95,-97,-81,-58,-45,-76,-49,-44,-46,-73,116,116,386,379,360,339]} 1. c4 {[%emt 0:00:04]} Nf6 {[%emt 0:02:11]} 2. g3 {[%emt 0:00:30]} g6 {[%emt 0:00:24]} 3. Bg2 {[%emt 0:00:35]} Bg7 {[%emt 0:00:16]} 4. Nf3 {[%emt 0:00:35]} O-O {[%emt 0:00:32]} 5. O-O {[%emt 0:00:23]} d6 {[%emt 0:00:35]} 6. Nc3 {[%emt 0:00:18]} e5 {[%emt 0:01:10]} 7. d3 {[%emt 0:00:16]} Re8 {[%emt 0:04:09]} 8. Rb1 $1 {[%emt 0:04:27] 8.Rb1 is better than 8.Bg5.} a5 {[%emt 0:01:06]} 9. a3 {[%emt 0:00:57]} h6 {[%emt 0:05:31]} 10. Ne1 {[%emt 0:08:09] A24: English Opening vs King's Indian: Lines without ...Nc6.} c6 {[%emt 0:05:54][%cal Bc7c6,Bc6d5][%mdl 32]} 11. Nc2 {[%emt 0:13:18]} Be6 {[%emt 0:18:34]} 12. b4 {[%emt 0:06:53] The position is equal.} axb4 {[%emt 0:02:23]} 13. axb4 {[%emt 0:01:47]} d5 {[%emt 0:02:14]} 14. cxd5 {[%emt 0:01:00]} cxd5 {[%emt 0:01:30] [#]} 15. d4 $146 {[%emt 0:01:30]} ({Predecessor:} 15. Bd2 Nbd7 16. Ra1 Qb6 17. Na4 Qc6 18. Nc3 Nb6 19. Qb1 Qd7 20. Rc1 Bg4 21. Rxa8 Rxa8 {0-1 (32) Jurkiewicz,K (2290)-Kempinski,R (2612) Dzwirzyno 2004}) 15... e4 {[%emt 0:02:56]} 16. Na1 {[%emt 0:10:58]} Nc6 {[%emt 0:13:24][%cal Oc6d4]} 17. b5 {[%emt 0:09:43]} Ne7 {[%emt 0:03:58]} 18. Qb3 {[%emt 0:00:51]} Nf5 {[%emt 0:01:30]} 19. Nc2 {[%emt 0:07:34]} Nd7 {[%emt 0:04:44][%cal Bf6d7,Bd7b6,Bb6c4][%mdl 32]} 20. Rd1 {[%emt 0:06:48]} ({But not} 20. Nxd5 $2 Nb6 21. Bxe4 Nxd5 $19) 20... Nb6 {[%emt 0:02:11]} 21. Ba3 {[%emt 0:02:04]} Nc4 {[%emt 0:04:31]} 22. e3 {[%emt 0:00:23]} Rc8 {[%emt 0:03:35]} 23. Na4 {[%emt 0:04:01]} b6 {[%emt 0:04:00]} 24. Nb4 {[%emt 0:01:38]} Na5 {[%emt 0:01:44] Prevents Nc6.} 25. Qa2 {[%emt 0:00:29]} Ra8 {[%emt 0:00:46]} 26. Na6 {[%emt 0:00:41]} Nd6 $2 {[%emt 0:01:24]} (26... Nc4 $17 {keeps the pressure on.}) 27. Nxb6 $1 $16 {[%emt 0:01:26]} Nxb5 $2 {[%emt 0:07:42][%mdl 8192]} (27... Qxb6 $16 28. Bxd6 Nc4) 28. Rxb5 $18 {[%emt 0:03:16]} ({Less strong is} 28. Nxa8 Qxa8 29. Bb4 (29. Rxb5 Qxa6 30. Qb1 Nc4 $18) 29... Nc4 $18) 28... Rxa6 {[%emt 0:00:35] [#]} 29. Bc5 $1 {[%emt 0:00:09] Weighted Error Value: White=0.15 (very precise) /Black=0.36} ({Worse is} 29. Nxd5 Nc6 $14) 1-0

[Event "87th Spanish Championship 2022"]
[Site "Linares"]
[Date "2022.08.13"]
[Round "3.23"]
[White "Martinez-Conde Hernandez, Carlos"]
[Black "Suarez Uriel, Adrian"]
[Result "1-0"]
[ECO "B98"]
[WhiteElo "2205"]
[BlackElo "2386"]
[Annotator "TA"]
[PlyCount "33"]
[EventDate "2022.08.11"]
[EventType "swiss"]
[EventCountry "ESP"]
[SourceTitle "playchess.com"]
[Source "ChessBase"]
[SourceQuality "1"]
[TimeControl "5400+30"]

{[%evp 15,33,-25,9,11,0,15,11,29,35,36,216,224,317,314,315,312,298,307,302,260]} 1. e4 {[%emt 0:00:03]} c5 {[%emt 0:03:37]} 2. Nf3 {[%emt 0:00:06]} d6 {[%emt 0:00:04]} 3. d4 {[%emt 0:00:12]} cxd4 {[%emt 0:00:04]} 4. Nxd4 {[%emt 0:00:04]} Nf6 {[%emt 0:00:06]} 5. Nc3 {[%emt 0:00:05]} a6 {[%emt 0:00:02]} 6. Bg5 {[%emt 0:00:27]} e6 {[%emt 0:00:04]} 7. f4 {[%emt 0:00:11]} Be7 {[%emt 0:00:05]} 8. Qe2 {[%emt 0:00:21]} h6 {[%emt 0:00:39]} 9. Bxf6 {[%emt 0:00:45] B98: Sicilian Najdorf: 6 Bg5 e6 7 f4 Be7, sidelines.} Bxf6 {[%emt 0:00:04]} 10. O-O-O {[%emt 0:00:07]} O-O {[%emt 0:00:45]} 11. e5 {[%emt 0:16:40] The position is equal.} Be7 {[%emt 0:00:50]} 12. g4 {[%emt 0:01:05][%cal Oh2h4] [#]} Nd7 $146 {[%emt 0:05:38]} (12... Qc7 $14) ({Predecessor:} 12... d5 13. Rd3 Nc6 14. Nxc6 bxc6 15. g5 g6 16. h4 h5 {1-0 (42) Simek,P (2269)-Haman,J (1955) Czech Republic 2010}) 13. exd6 $18 {[%emt 0:02:42] aiming for Nxe6.} Bxd6 {[%emt 0:01:19] [#]} (13... Bh4 $142 14. Bg2 Rb8) 14. Nxe6 $1 {[%emt 0:00:09][%mdl 512] White has a decisive advantage.} fxe6 {[%emt 0:00:10]} 15. Qxe6+ {[%emt 0:00:27]} ({But not} 15. Rxd6 Kh8 16. g5 (16. Rxe6 Nf6 $16) 16... Rxf4 17. gxh6 (17. Qxe6 Qxg5 18. Kb1 Rf6 $14) 17... Qg5 18. hxg7+ Kxg7) 15... Kh8 {[%emt 0:00:04]} 16. Qxd6 {[%emt 0:00:05]} ({Don't do} 16. Rxd6 Qh4 17. Qe3 (17. Rxd7 $2 Bxd7 18. Qe3 Bc6 $19) 17... Nf6) 16... Qf6 {[%emt 0:03:08]} 17. Qxf6 {White took control after the opening.  Weighted Error Value: White=0.00 (flawless) /Black=0.60} 1-0

[Event "87th Spanish Championship 2022"]
[Site "Linares"]
[Date "2022.08.13"]
[Round "3.24"]
[White "Jimenez Bernal, Francisco"]
[Black "Valmana Canto, Jaime"]
[Result "1-0"]
[ECO "E95"]
[WhiteElo "2149"]
[BlackElo "2406"]
[Annotator "TA"]
[PlyCount "83"]
[EventDate "2022.08.11"]
[EventType "swiss"]
[EventCountry "ESP"]
[SourceTitle "playchess.com"]
[Source "ChessBase"]
[SourceQuality "1"]
[TimeControl "5400+30"]

{[%evp 20,83,24,15,21,2,8,0,2,10,61,28,82,79,82,75,77,82,82,0,104,72,88,80,106,70,79,39,79,0,60,50,45,25,118,129,117,133,118,135,242,194,200,176,178,190,197,183,220,221,383,380,376,373,1612,1562,1046,1040,785,734,12822,12829,12839,12839,1286,687]} 1. d4 {[%emt 0:00:01]} Nf6 {[%emt 0:03:35]} 2. c4 {[%emt 0:00:06]} g6 {[%emt 0:00:09]} 3. Nc3 {[%emt 0:00:09]} Bg7 {[%emt 0:00:14]} 4. e4 {[%emt 0:00:15]} d6 {[%emt 0:00:07]} 5. Nf3 {[%emt 0:00:14]} O-O {[%emt 0:00:20]} 6. Be2 {[%emt 0:00:13]} Nbd7 {[%emt 0:02:14]} 7. O-O {[%emt 0:00:14]} e5 {[%emt 0:00:09]} 8. Re1 {[%emt 0:00:13]} Re8 {[%emt 0:01:17]} 9. Bf1 {[%emt 0:00:41]} exd4 {[%emt 0:00:27]} 10. Nxd4 {[%emt 0:00:11]} c6 {[%emt 0:00:05] is cutting edge theory.} 11. f3 {[%emt 0:04:18]} a6 {[%emt 0:01:20] E95: King's Indian: Classical: 7...Nbd7 8 Re1.} 12. Be3 {[%emt 0:01:43]} Ne5 {[%emt 0:00:24]} 13. Qd2 {[%emt 0:04:53]} b5 {[%emt 0:06:04] The position is equal.} 14. cxb5 {[%emt 0:03:55] [#]} cxb5 $146 {[%emt 0:14:18]} ({Black should try} 14... axb5 $11 15. Nc2 Bf8) ({Predecessor:} 14... axb5 15. a3 Bb7 16. Rad1 Nfd7 17. Qc1 Nc4 18. Bf2 Nde5 19. h3 h5 20. f4 Bh6 {0-1 (38) Praveen Kumar,C (2235)-Nitin,S (2357) Mumbai 2015}) 15. Rad1 {[%emt 0:22:09]} Bb7 {[%emt 0:12:32]} (15... b4 $11 16. Nd5 Nxd5 17. exd5 Bb7) 16. Nc2 $16 {[%emt 0:03:00]} Bf8 {[%emt 0:00:11]} 17. Nb4 {[%emt 0:03:28]} Rc8 {[%emt 0:00:33]} 18. Qf2 {[%emt 0:07:21]} Bg7 {[%emt 0:11:25]} 19. Qd2 {[%emt 0:08:12]} (19. a3 $16) 19... Nc4 {[%emt 0:01:13]} (19... Bf8 $1 $11 {remains equal.}) 20. Bxc4 {[%emt 0:00:16]} Rxc4 {[%emt 0:00:06]} 21. a3 {[%emt 0:00:22]} Re6 {[%emt 0:05:27]} 22. Qf2 {[%emt 0:03:14]} Qc8 {[%emt 0:10:03]} 23. Rd2 {[%emt 0:05:41] White is more active.} a5 {[%emt 0:00:31]} 24. Nbd5 {[%emt 0:03:54]} (24. Nc2 $16) 24... b4 {[%emt 0:00:09]} (24... Bxd5 $11 25. Nxd5 (25. exd5 Re5 $11) 25... Nxd5 26. Rxd5 Qc6) 25. axb4 $14 {[%emt 0:01:01]} axb4 {[%emt 0:00:06]} 26. Nb5 {[%emt 0:02:43][%cal Bc3b5,Bb5c7,Bc7d5,Bd5e3,Be3c2,Bc2d4,Bd4e6][%mdl 32] [#] Threatens to win with Nb6. Pair of Knights!} (26. Na4 $5 {[%cal Ra4b6]} Qe8 27. Nxf6+ Bxf6 28. Nb6 $14) 26... Nxe4 {[%emt 0:09:55] White leaves nothing to chance now.} 27. fxe4 $16 {[%emt 0:01:17]} Rcxe4 {[%emt 0:00:02] aiming for ...Bxd5.} 28. Nbc7 {[%emt 0:04:07]} Bxd5 {[%emt 0:01:18]} 29. Nxd5 {[%emt 0:00:43]} Bh6 {[%emt 0:00:52]} (29... R6e5 $16) 30. Rde2 {[%emt 0:01:45]} Bxe3 {[%emt 0:04:19]} 31. Rxe3 {[%emt 0:00:04]} ({Stronger than} 31. Nxe3 Qe8 $11) 31... Rxe3 {[%emt 0:00:06]} 32. Nxe3 {[%emt 0:02:08]} ({And not} 32. Rxe3 Qc1+ 33. Qf1 Qc5 $11) 32... Qc5 {[%emt 0:01:34]} 33. g3 {[%emt 0:00:12]} d5 {[%emt 0:00:32]} 34. Nc2 {[%emt 0:03:45]} Qc4 {[%emt 0:00:10]} (34... Rxe1+ {was called for.} 35. Nxe1 Qc1) 35. Rxe6 $18 {[%emt 0:03:37]} fxe6 {[%emt 0:00:02]} 36. Nd4 {[%emt 0:03:53]} e5 {[%emt 0:02:41]} (36... Qc8 37. Qf6 Qc1+ 38. Kg2 Qe3) 37. Ne6 {[%emt 0:01:08][%csl Ge6][%cal Rf2f8] [#] White is clearly winning.} Qc8 {[%emt 0:00:28] Against Qf8+} 38. Qf6 {[%emt 0:01:18][%csl Ge6][%cal Rf6g7]} Qc1+ {[%emt 0:00:03]} 39. Kg2 {[%emt 0:02:19][%csl Ge6][%cal Rf6g7]} Qd2+ {[%emt 0:01:06]} 40. Qf2 {[%emt 0:01:06]} Qh6 {[%emt 0:00:03]} 41. g4 {[%emt 0:01:09] White threatens g5 and mate.} g5 {[%emt 0:01:42]} 42. Qf5 {[%emt 0:00:12][%csl LRe5,LRg5] Weighted Error Value: White=0.17 (very precise) /Black=0.41} 1-0